bitfinex/quotes_ETHUSD_20251118
["timestamp","ask_amount","ask_price","bid_price","bid_amount"]
[1763443117501,0.286,3027.8,3027.1,0.86838164]
[1763443118275,0.286,3027.8,3027.0,1.7317426]
[1763443118487,0.1813,3028.0,3027.0,1.7317426]
[1763443118801,0.286,3027.9,3027.3,0.86838164]
[1763443119092,0.286,3027.9,3027.2,4.17165982]
[1763443119260,0.286,3027.9,3027.2,3.30327818]
[1763443119662,0.4925,3028.3,3027.2,8.34398736]
[1763443119852,0.286,3028.2,3027.4,0.86838164]
[1763443120058,0.286,3028.1,3027.4,0.86838164]
[1763443120280,0.286,3028.1,3027.3,1.21928164]
[1763443120593,0.286,3028.1,3027.4,0.86948874]
[1763443120767,0.286,3028.1,3027.3,1.21928164]
[1763443120971,0.286,3028.1,3027.4,6.60632886]
[1763443121407,0.002,3028.7,3027.4,6.60632886]
[1763443121697,0.002,3028.7,3027.5,0.3509]
[1763443121698,0.286,3028.6,3027.5,0.3509]
[1763443121863,0.286,3028.5,3027.6,6.17184813]
[1763443122062,0.286,3028.5,3027.7,0.73911298]
[1763443122293,0.286,3028.5,3027.7,1.09001298]
[1763443122958,0.286,3028.5,3027.8,6.6054561]
[1763443123159,0.286,3028.5,3027.8,6.9563561]
[1763443123397,0.002,3028.7,3028.4,0.5279]
[1763443123594,0.286,3028.6,3028.4,0.5279]
[1763443124281,0.286,3028.6,3028.4,0.177]
[1763443124801,0.4827,3028.5,3027.5,1.52231156]
[1763443125015,0.4827,3028.5,3027.5,0.65392992]
[1763443125016,0.4925,3028.4,3027.5,0.65392992]
[1763443125172,0.4925,3028.4,3027.5,3.95693719]
[1763443125499,0.4925,3028.4,3027.5,3.94847122]
[1763443125500,2.388,3028.3,3027.5,3.94847122]
[1763443125859,1.194,3028.3,3027.5,0.64546395]
[1763443126059,0.7785,3028.6,3027.5,3.3030362]
[1763443126284,0.4925,3028.6,3027.3,6.60651847]
[1763443126478,0.002,3028.7,3027.4,0.66065185]
[1763443126479,0.7785,3028.5,3027.4,0.66065185]
[1763443126712,0.7785,3028.5,3027.2,3.3033748]
[1763443126861,0.4925,3028.4,3027.2,3.3033748]
[1763443127062,0.4925,3028.4,3027.2,6.60675746]
[1763443127365,0.4925,3028.4,3027.1,0.3509]
[1763443127731,0.4925,3028.4,3026.8,6.60763842]
[1763443127926,0.4925,3028.4,3026.9,0.74760201]
[1763443128809,0.4925,3028.4,3027.0,0.3509]
[1763443129012,0.286,3028.3,3027.0,0.3509]
[1763443129214,0.4925,3028.2,3027.1,3.30349179]
[1763443129522,0.286,3028.3,3027.1,6.95788358]
[1763443129691,0.286,3028.3,3027.2,0.69578836]
[1763443129896,0.7785,3028.3,3027.2,0.69578836]
[1763443130431,0.1822,3027.3,3026.8,0.86838164]
[1763443130576,0.286,3027.2,3026.7,4.17221801]
[1763443130781,0.286,3027.2,3026.7,3.30383637]
[1763443130982,0.286,3027.2,3026.7,4.4374519]
[1763443131181,0.286,3027.2,3026.7,5.30583354]
[1763443131586,0.286,3027.2,3026.7,8.60976191]
[1763443131790,0.286,3027.2,3026.7,5.30583354]
[1763443132008,0.286,3027.2,3026.8,0.3509]
[1763443132324,0.286,3027.2,3026.8,1.74986499]
[1763443132494,0.1822,3027.5,3026.8,1.39896499]
[1763443132819,0.286,3027.4,3026.9,0.3509]
[1763443132992,0.1822,3027.9,3026.9,0.3509]
[1763443133199,0.286,3027.8,3027.1,3.30349179]
[1763443133396,0.286,3027.8,3027.1,6.60698358]
[1763443134018,0.4925,3028.2,3027.1,7.82626522]
[1763443134195,0.286,3027.7,3027.1,0.86838164]
[1763443134406,0.286,3027.7,3027.0,0.86838164]
[1763443134613,0.1822,3027.6,3027.0,4.17197721]
[1763443135351,2.388,3027.5,3027.0,4.17197721]
[1763443135522,2.388,3027.5,3027.0,5.08838673]
[1763443135730,2.388,3027.5,3027.1,0.86838164]
[1763443136030,2.388,3027.5,3027.0,5.08838384]
[1763443136226,0.4925,3027.8,3027.1,0.86838164]
[1763443136227,1.48,3027.4,3027.1,0.86838164]
[1763443137225,0.4925,3027.8,3027.1,0.86838164]
[1763443137427,0.286,3027.3,3027.1,4.1717965]
[1763443137761,0.286,3027.3,3027.1,5.03511964]
[1763443137913,0.4925,3027.8,3027.1,5.03511964]
[1763443138111,0.286,3027.7,3027.1,5.03511964]
[1763443138442,0.4925,3028.3,3027.2,0.86838164]
[1763443138757,0.286,3028.2,3027.5,0.86838164]
[1763443138986,0.286,3028.2,3027.6,0.86838164]
[1763443139162,0.286,3028.2,3027.5,0.86838164]
[1763443139452,0.1822,3027.6,3027.4,0.86838164]
[1763443139861,0.1822,3027.6,3027.3,0.86838164]
[1763443140164,0.1822,3027.9,3027.3,0.86838164]
[1763443140455,0.1822,3027.9,3027.4,0.86838164]
[1763443140614,0.1822,3027.9,3027.3,0.86838164]
[1763443141118,0.002,3028.6,3027.3,0.86838164]
[1763443141119,0.002,3028.6,3027.8,0.3509]
[1763443141325,0.002,3028.6,3027.5,0.86838164]
[1763443141326,0.286,3028.5,3028.2,6.60458358]
[1763443141618,0.286,3028.5,3028.4,0.86838164]
[1763443142362,0.286,3028.5,3028.3,1.15784219]
[1763443142563,0.4925,3028.4,3028.3,0.86511198]
[1763443142785,0.4925,3028.4,3028.1,1.15784219]
[1763443142786,0.9752,3028.4,3028.1,0.86511198]
[1763443143159,0.002,3028.6,3028.3,0.86511198]
[1763443143496,0.002,3028.6,3028.5,4.81070685]
[1763443143786,0.288,3028.6,3028.5,4.45980685]
[1763443144158,0.288,3028.6,3028.5,5.38962794]
[1763443144358,0.288,3028.6,3028.5,6.21087119]
[1763443145096,0.288,3028.6,3028.0,5.61814728]
[1763443145097,1.2632,3028.6,3028.4,1.73676328]
[1763443145387,1.479,3028.5,3028.4,5.03883698]
[1763443145593,0.002,3028.6,3028.4,3.6529737]
[1763443145893,0.286,3028.5,3028.3,5.61779614]
[1763443146196,0.286,3028.5,3028.4,2.31568438]
[1763443146401,0.286,3028.5,3028.4,2.66658438]
[1763443147387,0.286,3028.5,3028.4,3.6529737]
[1763443147595,0.286,3028.5,3028.4,6.34145101]
[1763443148186,0.002,3028.6,3028.4,6.69235101]
[1763443148485,0.002,3028.6,3028.5,0.7018]
[1763443148690,0.002,3028.6,3028.4,4.01528225]
[1763443148691,0.288,3028.6,3028.4,4.01528225]
[1763443148898,0.288,3028.6,3028.4,4.01527893]
[1763443149053,0.288,3028.6,3028.5,0.75242789]
[1763443149254,0.002,3028.6,3028.5,0.75242789]
[1763443149490,0.288,3028.6,3028.5,4.05439255]
[1763443150338,0.002,3028.8,3028.5,5.31228519]
[1763443150533,0.002,3028.8,3028.6,4.58681645]
[1763443150892,0.002,3028.8,3028.7,0.7018]
[1763443152038,0.288,3028.8,3028.7,4.00354662]
[1763443152236,0.288,3028.8,3028.7,5.58364791]
[1763443153393,0.002,3029.0,3028.7,8.88539453]
[1763443153613,0.286,3028.8,3028.7,4.88184791]
[1763443153840,0.002,3029.0,3028.7,8.18359453]
[1763443154065,0.002,3029.0,3028.9,2.67592499]
[1763443154270,0.002,3029.0,3028.9,3.76187694]
[1763443154627,0.002,3029.0,3028.9,3.41097694]
[1763443154954,0.002,3029.0,3028.7,3.30173561]
[1763443155151,0.286,3028.9,3028.6,2.32502499]
[1763443155358,2.386,3028.8,3028.6,5.62687625]
[1763443155532,2.386,3028.8,3028.6,5.62687617]
[1763443155725,0.002,3029.0,3028.7,0.7018]
[1763443155945,0.286,3028.9,3028.8,3.30163761]
[1763443156225,0.002,3029.3,3029.0,0.3509]
[1763443156423,0.002,3029.3,3029.2,2.67716258]
[1763443156664,0.002,3029.3,3028.9,1.66339664]
[1763443156665,0.288,3029.3,3029.1,2.32626258]
[1763443156835,0.288,3029.3,3029.1,3.34319417]
[1763443157376,0.9492,3029.2,3028.9,2.32626258]
[1763443157540,0.48,3029.2,3029.0,1.16364927]
[1763443157888,0.288,3029.3,3029.0,1.16364927]
[1763443157889,0.52126638,3029.1,3029.0,0.87309703]
[1763443158045,0.52126638,3029.1,3028.0,0.65474776]
[1763443158046,7.08262124,3029.1,3027.8,1.16364927]
[1763443158232,0.183,3028.0,3027.6,1.16364927]
[1763443158640,0.48,3027.9,3027.6,1.16364927]
[1763443158870,0.7762,3027.9,3027.6,1.16364927]
[1763443159181,0.285,3027.9,3027.6,1.16429774]
[1763443159332,0.4559,3027.7,3027.6,1.16429774]
[1763443159663,0.285,3027.9,3027.6,1.16429774]
[1763443159964,0.285,3027.9,3027.7,1.16370239]
[1763443160465,0.183,3028.6,3027.8,1.16370239]
[1763443160466,0.6742,3028.6,3027.8,1.16370239]
[1763443160653,0.7762,3028.5,3027.8,1.16370239]
[1763443160851,0.285,3028.4,3027.9,1.16370239]
[1763443161053,0.285,3028.4,3027.8,1.16370239]
[1763443161054,0.7762,3028.4,3027.8,1.16370239]
[1763443161260,0.6369,3027.9,3027.8,1.16370239]
[1763443161461,0.4912,3028.3,3027.8,1.45462002]
[1763443161777,0.4912,3028.3,3027.9,1.16370239]
[1763443161958,0.285,3028.2,3027.9,1.16370239]
[1763443162154,0.4559,3028.0,3027.9,1.16370239]
[1763443162326,0.4559,3028.0,3027.8,1.16370239]
[1763443162533,0.285,3027.9,3027.8,1.16370239]
[1763443162780,0.9796,3027.9,3027.8,1.16370239]
[1763443163278,0.285,3027.9,3027.7,1.74547391]
[1763443163480,0.285,3027.8,3027.7,1.9200213]
[1763443163638,0.285,3027.8,3027.7,1.22608999]
[1763443163835,0.285,3027.8,3027.5,3.3030413]
[1763443164035,0.6742,3028.6,3027.8,3.30272805]
[1763443164238,0.285,3028.5,3028.1,1.16381402]
[1763443164440,0.4559,3028.2,3028.1,1.16381402]
[1763443164933,0.9471,3028.2,3028.1,1.16381402]
[1763443165331,3.3331,3028.2,3028.1,1.16381402]
[1763443165535,2.1401,3028.2,3028.1,1.16381402]
[1763443166766,1.6489,3028.2,3028.1,1.16381402]
[1763443167334,0.285,3028.2,3028.1,1.16381402]
[1763443167536,0.181,3028.9,3028.1,8.18133369]
[1763443167773,0.285,3028.8,3028.5,1.16248756]
[1763443168284,0.7762,3028.8,3028.6,1.16248756]
[1763443168461,0.285,3028.7,3028.6,1.16248756]
[1763443168660,0.7409,3028.7,3028.1,6.26172547]
[1763443168843,0.7409,3028.7,3028.2,3.92846434]
[1763443169277,0.4912,3028.6,3028.2,3.92846434]
[1763443169890,0.285,3028.5,3028.3,0.459]
[1763443170074,0.285,3028.4,3028.3,2.32626258]
[1763443170273,0.002,3029.1,3028.4,0.4844]
[1763443170469,0.285,3029.0,3028.9,1.16463606]
[1763443170684,0.285,3029.0,3028.8,3.30153978]
[1763443171270,0.002,3029.1,3028.8,3.30153978]
[1763443171470,0.285,3029.0,3028.8,3.30153978]
[1763443171707,0.285,3029.0,3028.8,3.76053978]
[1763443172009,0.285,3029.0,3028.5,2.32626258]
[1763443172305,0.285,3028.9,3028.5,8.93017555]
[1763443172516,0.285,3028.9,3028.4,2.32626258]
[1763443172517,0.4559,3028.6,3028.4,2.32626258]
[1763443172725,0.466,3028.9,3027.9,2.32626258]
[1763443172726,0.4559,3028.2,3027.9,2.32626258]
[1763443173024,0.4559,3028.2,3027.6,4.086643]
[1763443173025,0.285,3028.1,3027.6,2.32626258]
[1763443173200,0.285,3028.1,3027.1,0.1297]
[1763443173201,0.2054,3027.7,3027.3,2.32626258]
[1763443173384,0.285,3027.6,3027.3,0.56297524]
[1763443173592,0.285,3027.6,3027.3,3.86623406]
[1763443173776,0.7762,3027.6,3027.2,3.00182121]
[1763443174202,0.7762,3027.6,3027.2,0.67555863]
[1763443174517,0.4912,3027.5,3027.1,2.32626258]
[1763443174675,0.285,3027.6,3027.1,6.20893709]
[1763443174874,0.285,3027.5,3027.1,6.28329038]
[1763443175111,0.285,3027.5,3027.1,6.40346221]
[1763443175326,2.386,3027.4,3027.1,3.62016209]
[1763443175484,2.386,3027.4,3027.1,6.28329825]
[1763443175671,0.181,3027.9,3027.1,3.10001587]
[1763443175874,0.7612,3027.8,3027.7,1.16364014]
[1763443176087,0.7612,3027.8,3027.6,1.16364014]
[1763443176314,0.9266,3027.7,3027.6,1.16364014]
[1763443176931,0.9266,3027.7,3027.2,1.16364014]
[1763443177085,0.9266,3027.7,3025.9,0.1839]
[1763443177086,0.51748682,3027.6,3027.0,1.16364014]
[1763443177290,0.51748682,3027.6,3025.9,6.4408745]
[1763443177291,0.4762,3027.6,3026.6,1.16364014]
[1763443177625,0.04128819,3027.5,3026.6,1.16364014]
[1763443177785,0.6434,3026.7,3026.6,1.16364014]
[1763443178227,1.4046,3026.7,3026.5,1.16364014]
[1763443178427,0.4762,3027.3,3026.6,1.16364014]
[1763443178627,0.193,3026.9,3026.5,1.16364014]
[1763443179082,0.4504,3026.6,3026.5,1.16364014]
[1763443179290,0.193,3026.9,3026.5,4.46776713]
[1763443179485,0.193,3027.9,3026.9,0.001]
[1763443179731,0.7612,3027.8,3026.9,1.16464014]
[1763443180023,0.7612,3027.8,3027.0,1.16364014]
[1763443180202,0.4762,3027.7,3027.0,1.16364014]
[1763443180400,0.4762,3027.7,3027.1,0.1961]
[1763443180615,0.285,3027.6,3027.3,1.16364014]
[1763443181299,0.193,3027.9,3027.4,1.16364014]
[1763443181300,0.285,3027.5,3027.4,1.16364014]
[1763443181503,0.285,3027.5,3027.3,0.4768]
[1763443181723,0.285,3027.5,3027.2,6.60672224]
[1763443182118,0.285,3027.4,3027.2,6.60672224]
[1763443182293,0.002,3028.4,3027.8,0.4748]
[1763443182492,0.002,3028.4,3027.7,1.16053212]
[1763443182493,0.7612,3028.3,3027.7,1.16053212]
[1763443182908,0.4762,3028.2,3027.7,1.16053212]
[1763443183233,0.002,3028.4,3027.7,1.16053212]
[1763443183440,0.285,3028.1,3027.7,1.16053212]
[1763443184034,0.002,3028.4,3027.8,1.16053212]
[1763443184246,0.285,3028.0,3027.8,1.16053212]
[1763443184818,0.6434,3027.9,3027.8,1.16053212]
[1763443185002,0.6434,3027.9,3027.7,1.16053212]
[1763443185203,2.386,3027.8,3027.7,1.16053212]
[1763443186204,2.386,3027.8,3027.6,1.74077362]
[1763443187117,2.386,3027.8,3027.7,1.74077362]
[1763443187439,1.193,3027.8,3027.7,1.74077362]
[1763443187977,0.002,3028.4,3027.7,0.97916994]
[1763443188123,0.285,3028.3,3028.2,1.16330614]
[1763443188319,0.7612,3028.3,3028.1,1.16330614]
[1763443188517,0.9266,3028.2,3028.1,1.16330614]
[1763443188822,0.9266,3028.2,3028.1,1.16343923]
[1763443189024,0.9266,3028.2,3028.0,1.74495921]
[1763443189258,0.285,3028.1,3028.0,1.74495921]
[1763443190060,1.2116,3028.1,3027.9,1.74495921]
[1763443190230,0.7354,3028.1,3028.0,1.74495921]
[1763443190431,1.2116,3028.1,3028.0,1.74495921]
[1763443190636,1.2116,3028.1,3027.9,1.74495921]
[1763443190836,1.2116,3028.1,3028.0,1.74495921]
[1763443191233,0.7354,3028.1,3027.9,1.74495921]
[1763443191446,0.285,3028.1,3028.0,1.74495921]
[1763443191964,0.002,3028.4,3028.0,1.74495921]
[1763443192165,0.285,3028.3,3028.2,1.16433432]
[1763443192467,0.7612,3028.3,3028.2,1.16433432]
[1763443192669,1.2116,3028.3,3028.1,1.16433432]
[1763443192833,0.4762,3028.2,3028.1,1.16433432]
[1763443193171,0.9266,3028.2,3028.1,1.16433432]
[1763443193468,0.9266,3028.2,3028.0,1.16433432]
[1763443193676,0.0221,3028.0,3027.8,1.74495921]
[1763443193970,0.0221,3028.0,3027.7,1.74495921]
[1763443194193,0.4983,3028.0,3027.7,1.74495921]
[1763443194329,0.193,3027.9,3027.7,1.74495921]
[1763443194524,0.4504,3027.8,3027.3,2.32626258]
[1763443194836,0.285,3027.7,3027.3,5.62951906]
[1763443195239,0.002,3028.4,3027.6,0.4748]
[1763443195497,1.9542,3028.3,3028.0,1.16561961]
[1763443195700,1.9542,3028.3,3027.9,1.16561961]
[1763443196197,0.4762,3028.2,3027.9,1.16561961]
[1763443196569,0.285,3028.1,3027.9,1.16561961]
[1763443196971,0.9266,3028.0,3027.9,1.16561961]
[1763443197479,0.4782,3028.4,3027.9,1.16561961]
[1763443197680,0.4782,3028.4,3027.8,1.74842941]
[1763443197990,0.285,3028.3,3028.0,1.16576735]
[1763443198195,0.287,3028.3,3028.1,1.16576735]
[1763443198397,0.285,3028.2,3028.1,1.16576735]
[1763443198555,0.7354,3028.2,3028.0,1.74842941]
[1763443199228,0.4983,3028.1,3028.0,1.74842941]
[1763443199962,0.285,3028.2,3028.0,1.74842941]
[1763443200169,0.4504,3028.1,3028.0,1.74842941]
[1763443200366,0.002,3028.3,3028.1,0.1961]
[1763443200575,0.002,3028.3,3028.2,1.74905693]
[1763443200775,0.287,3028.3,3028.2,1.74905693]
[1763443200974,0.002,3028.3,3028.2,1.74905693]
[1763443201179,0.7374,3028.3,3027.9,2.32626258]
[1763443201479,0.287,3028.3,3027.9,2.32626258]
[1763443201681,0.4762,3028.2,3027.9,2.32626258]
[1763443201903,0.287,3028.3,3027.8,2.32626258]
[1763443202073,0.002,3028.3,3027.9,2.32626258]
[1763443202278,0.002,3028.4,3028.2,0.6613]
[1763443202486,0.002,3029.3,3028.7,0.405504]
[1763443202706,0.002,3029.3,3029.1,0.405504]
[1763443202878,0.285,3029.2,3029.1,0.405504]
[1763443203094,0.002,3029.3,3029.2,0.6709]
[1763443203297,0.002,3029.3,3029.2,3.58790699]
[1763443203493,0.002,3029.3,3029.2,0.6709]
[1763443203818,0.6692,3031.0,3029.3,0.405504]
[1763443203989,0.6692,3031.0,3030.5,1.16484264]
[1763443204189,0.4762,3030.9,3030.5,1.16484264]
[1763443204436,0.4483,3030.6,3030.3,1.16484264]
[1763443204787,0.9242,3030.6,3030.3,1.16484264]
[1763443205205,3.49104384,3032.2,3030.4,1.16484264]
[1763443205206,1.193,3030.5,3030.4,1.16484264]
[1763443205402,2.671,3030.5,3030.4,0.4768]
[1763443205630,2.671,3030.5,3030.4,0.4748]
[1763443205829,2.671,3030.5,3030.3,1.74726396]
[1763443205830,0.285,3030.5,3030.3,1.74726396]
[1763443205992,0.285,3030.5,3030.4,1.16031869]
[1763443206193,0.285,3030.5,3030.4,1.64491869]
[1763443206426,0.285,3030.5,3030.4,3.17385069]
[1763443206649,0.6673,3032.0,3030.5,0.405504]
[1763443206931,0.4743,3032.9,3031.2,7.29562774]
[1763443207091,0.4743,3032.9,3031.0,1.73767626]
[1763443207092,0.1873,3032.9,3031.7,1.15845084]
[1763443207292,0.4743,3032.8,3031.5,1.15845084]
[1763443207601,0.4743,3032.8,3031.3,2.55501361]
[1763443207807,0.6545,3031.4,3030.7,1.15845084]
[1763443208004,0.285,3031.3,3030.4,1.15845084]
[1763443208208,0.1873,3030.8,3030.2,1.15845084]
[1763443208549,0.285,3030.7,3029.5,1.34185084]
[1763443208834,0.04124595,3030.6,3029.7,1.15845084]
[1763443209128,0.04124595,3030.6,3029.4,1.98369592]
[1763443209129,0.04124595,3030.6,3029.4,1.15845084]
[1763443209429,0.7593,3030.5,3029.4,1.15845084]
[1763443209639,0.4743,3030.5,3029.3,1.15845084]
[1763443209802,0.4743,3030.5,3029.4,1.15845084]
[1763443210007,0.285,3030.4,3029.4,2.17625116]
[1763443210218,0.285,3030.4,3029.4,2.83730622]
[1763443210425,0.51555004,3030.3,3029.4,0.66105506]
[1763443210618,0.51555004,3030.3,3029.1,1.15845084]
[1763443210619,0.0412514,3030.2,3029.1,1.15845084]
[1763443211140,0.4743,3030.1,3029.0,1.34185084]
[1763443211336,0.4743,3030.1,3029.1,1.15845084]
[1763443211830,0.285,3030.0,3029.1,1.15845084]
[1763443212201,0.1873,3029.9,3029.1,1.15845084]
[1763443212832,0.6616,3029.9,3029.1,1.15845084]
[1763443213211,0.6616,3029.9,3029.0,2.01515701]
[1763443213398,0.285,3029.8,3029.1,1.15845084]
[1763443213800,0.04125821,3029.7,3028.6,1.15845084]
[1763443214039,0.1873,3028.9,3028.1,1.15845084]
[1763443214335,0.285,3028.8,3027.8,1.81152237]
[1763443214538,0.7593,3028.8,3027.7,1.15845084]
[1763443214899,0.4743,3028.7,3027.6,1.15845084]
[1763443215097,0.4743,3028.7,3027.7,1.62294085]
[1763443215403,2.671,3028.6,3027.7,1.62294085]
[1763443215815,2.671,3028.6,3027.7,4.92576939]
[1763443216021,0.1873,3028.9,3027.8,1.64205084]
[1763443216335,0.285,3028.5,3027.9,1.15845084]
[1763443216533,0.285,3028.5,3027.8,0.4836]
[1763443216534,0.285,3028.5,3028.0,1.15845084]
[1763443216719,0.285,3028.5,3028.0,1.49642355]
[1763443217132,0.285,3028.5,3028.1,0.1155]
[1763443218135,0.285,3028.5,3028.2,0.87185423]
[1763443219055,0.285,3028.5,3028.2,1.34275423]
[1763443219214,0.285,3028.4,3028.2,0.87185423]
[1763443220016,0.9348,3028.3,3027.9,0.87185423]
[1763443220442,0.4918,3028.3,3027.8,0.87285423]
[1763443220645,0.2,3028.9,3027.9,0.87185423]
[1763443220646,0.285,3028.2,3027.9,0.87185423]
[1763443220814,0.2,3028.9,3028.0,0.87185423]
[1763443220815,0.285,3028.1,3028.0,0.87185423]
[1763443221015,0.285,3028.1,3027.9,0.87185423]
[1763443221258,0.285,3028.0,3027.9,0.87185423]
[1763443221550,0.2,3028.9,3028.0,0.4709]
[1763443221713,0.285,3028.8,3028.1,0.87087664]
[1763443221913,0.285,3028.8,3028.2,0.87087664]
[1763443222545,0.2,3028.9,3028.1,1.92697287]
[1763443222852,0.285,3028.8,3028.1,0.87087664]
[1763443223973,0.1873,3029.9,3028.2,1.34177664]
[1763443223974,0.285,3028.7,3028.2,1.34177664]
[1763443224265,0.285,3028.7,3028.2,0.87087664]
[1763443224410,0.285,3028.7,3028.3,0.4709]
[1763443224609,0.285,3028.7,3028.3,0.47441753]
[1763443224958,0.285,3028.7,3028.2,0.87087664]
[1763443225120,0.4824,3029.6,3028.6,0.6466]
[1763443225449,0.285,3029.5,3028.8,3.75706686]
[1763443226257,0.285,3029.5,3028.8,0.4555]
[1763443226452,0.285,3029.5,3028.8,3.75711598]
[1763443227096,0.6697,3029.9,3028.8,7.05875359]
[1763443227277,0.4824,3030.3,3029.4,0.1872]
[1763443227595,0.285,3030.2,3029.5,1.62935084]
[1763443227899,0.285,3030.2,3029.5,1.15845084]
[1763443228194,0.285,3030.1,3029.4,1.15845084]
[1763443228367,0.1873,3030.8,3029.3,0.4709]
[1763443228368,0.285,3030.0,3029.3,1.15845084]
[1763443228695,0.485,3029.9,3029.4,1.15845084]
[1763443228852,0.485,3029.9,3029.3,1.15845084]
[1763443229059,0.4824,3030.6,3029.4,1.15845084]
[1763443229283,0.285,3030.5,3029.4,1.15845084]
[1763443229572,0.4824,3030.6,3029.4,4.45942833]
[1763443229766,0.285,3030.5,3029.5,1.15845084]
[1763443230188,0.6697,3031.4,3030.4,0.6389]
[1763443230363,0.285,3031.3,3030.4,0.6389]
[1763443230790,0.285,3031.3,3030.4,1.79735084]
[1763443231506,0.285,3031.2,3030.5,3.29978551]
[1763443231684,0.285,3031.2,3030.4,2.26825084]
[1763443231685,0.285,3031.2,3030.4,1.15845084]
[1763443231864,0.4824,3031.1,3030.1,1.15845084]
[1763443232197,0.285,3031.0,3030.2,1.81275084]
[1763443232396,0.285,3031.0,3030.1,1.15845084]
[1763443232694,0.285,3031.0,3030.0,1.15845084]
[1763443232695,0.485,3030.9,3030.0,1.15845084]
[1763443233062,0.4824,3030.8,3029.8,1.15845084]
[1763443233258,0.6918,3029.9,3029.7,1.15845084]
[1763443233463,0.285,3029.8,3029.3,1.15845084]
[1763443233996,0.285,3029.8,3029.2,1.15845084]
[1763443233997,0.4824,3029.7,3029.2,1.15845084]
[1763443234170,0.4824,3029.7,3029.1,1.15845084]
[1763443234689,0.285,3029.8,3029.1,1.15845084]
[1763443235189,0.7674,3029.8,3028.9,1.15845084]
[1763443235397,2.386,3029.7,3028.9,1.15845084]
[1763443235597,1.193,3029.7,3028.9,4.45991698]
[1763443235783,0.285,3029.6,3028.9,4.45997807]
[1763443236560,0.002,3030.8,3029.5,0.1872]
[1763443236808,0.4926,3030.5,3029.5,1.34565084]
[1763443237298,0.4926,3030.5,3029.5,1.15845084]
[1763443237498,0.4926,3030.5,3029.6,1.15845084]
[1763443237878,0.5383,3029.7,3029.4,1.15845084]
[1763443238203,0.5383,3029.7,3029.3,1.15845084]
[1763443238204,0.4713,3029.5,3029.3,1.15845084]
[1763443238408,0.4713,3029.5,3028.5,0.4636]
[1763443238409,0.1812,3029.2,3028.9,1.15845084]
[1763443238607,0.1812,3029.2,3028.5,1.15845084]
[1763443238807,0.1823,3028.6,3028.5,1.15845084]
[1763443238968,0.067,3029.7,3028.4,1.15845084]
[1763443239165,0.4926,3029.5,3028.4,1.15845084]
[1763443240306,0.4926,3029.5,3028.4,4.46045499]
[1763443240506,0.32626229,3029.4,3028.5,1.15845084]
[1763443240893,0.32626229,3029.4,3028.4,1.15845084]
[1763443240894,0.1823,3028.6,3028.4,1.15845084]
[1763443241097,0.285,3028.5,3028.4,1.15845084]
[1763443241610,0.285,3028.5,3028.3,1.15845084]
[1763443243102,0.9639,3028.4,3028.3,1.15845084]
[1763443243305,0.4713,3028.4,3028.0,1.15945084]
[1763443243629,0.4926,3028.3,3028.0,1.15945084]
[1763443243792,0.1986,3028.1,3028.0,0.001]
[1763443243991,0.4926,3029.5,3028.2,0.6563]
[1763443244220,0.285,3029.4,3028.4,1.63137152]
[1763443244414,0.285,3029.4,3028.4,1.16227152]
[1763443244728,0.53386365,3029.3,3028.4,1.16227152]
[1763443244929,0.53386365,3029.3,3028.3,1.16227152]
[1763443245088,0.6536,3028.4,3028.3,1.16227152]
[1763443245292,3.3246,3028.4,3028.0,1.16327152]
[1763443245526,3.8172,3028.4,3028.0,1.16327152]
[1763443246087,0.6536,3028.4,3028.0,1.16327152]
[1763443246328,0.067,3029.7,3028.1,1.34947152]
[1763443246329,1.478,3028.3,3028.1,1.34947152]
[1763443246533,0.1823,3029.0,3028.1,2.45213662]
[1763443246832,0.285,3028.9,3028.4,1.16227152]
[1763443248163,0.285,3028.8,3028.4,1.16227152]
[1763443248362,0.1823,3029.0,3028.4,1.16227152]
[1763443248663,0.285,3028.7,3028.4,1.16227152]
[1763443248821,0.4926,3029.3,3028.4,4.46434522]
[1763443249022,0.067,3029.7,3028.6,1.63137152]
[1763443249247,0.7776,3029.6,3028.7,1.16227152]
[1763443249456,0.4926,3029.5,3028.7,1.16227152]
[1763443249656,0.4926,3029.5,3028.8,1.16227152]
[1763443249856,0.4926,3029.5,3028.7,1.16227152]
[1763443250055,0.6536,3028.8,3028.7,1.16227152]
[1763443250277,0.4926,3029.5,3028.4,1.16227152]
[1763443250557,0.4926,3029.5,3028.7,1.16227152]
[1763443250762,0.285,3029.4,3028.7,1.16227152]
[1763443251133,0.7776,3029.4,3028.7,1.16227152]
[1763443251463,0.7776,3029.4,3028.6,1.16227152]
[1763443251762,0.4926,3029.3,3028.7,1.16227152]
[1763443252062,0.4926,3029.3,3028.6,1.16227152]
[1763443252440,0.6536,3028.7,3028.4,1.16227152]
[1763443252766,0.6536,3028.7,3028.0,0.001]
[1763443252767,0.1986,3028.5,3028.0,0.001]
[1763443252924,0.2013,3028.1,3028.0,0.001]
[1763443253365,0.6939,3028.1,3028.0,0.001]
[1763443253732,0.4863,3028.1,3028.0,0.001]
[1763443254156,0.9789,3028.1,3028.0,0.001]
[1763443255239,4.27189264,3028.1,3028.0,0.001]
[1763443256960,1.10829264,3028.1,3028.0,0.001]
[1763443257165,1.39329264,3028.1,3028.0,0.001]
[1763443257365,1.88589264,3028.1,3028.0,0.001]
[1763443258188,1.60089264,3028.1,3028.0,0.001]
[1763443258362,1.10829264,3028.1,3028.0,0.001]
[1763443258689,1.39329264,3028.1,3028.0,0.001]
[1763443258880,2.15589264,3028.1,3028.0,0.001]
[1763443259592,1.2489,3028.1,3028.0,0.001]
[1763443259790,0.7563,3028.1,3028.0,0.001]
[1763443260293,0.1823,3028.7,3028.0,0.4701]
[1763443260493,6.1371769,3030.6,3028.6,0.4691]